[Event "*** Titled Tuesday 3|2 Blitz (Late)"]
[Site "Chess.com"]
[Date "2016.11.01"]
[Round "2"]
[White "MFBerna"]
[Black "kereswasbest"]
[Result "1/2-1/2"]
[WhiteElo "2175"]
[BlackElo "2127"]
[TimeControl "180+2"]
[EndTime "17:25:36 PDT"]
[Termination "Game drawn by repetition"]

1. e4 {[%clk 0:03:02]} 1... e6 {[%clk 0:03:00.2]} 2. d4 {[%clk 0:03:02.3]} 2...
d5 {[%clk 0:03:02.1]} 3. Nc3 {[%clk 0:03:02.7]} 3... dxe4 {[%clk 0:03:00.2]} 4.
Nxe4 {[%clk 0:03:03.7]} 4... Nd7 {[%clk 0:02:57.9]} 5. Nf3 {[%clk 0:03:04.6]}
5... Ngf6 {[%clk 0:02:54.3]} 6. Nxf6+ {[%clk 0:03:05.8]} 6... Nxf6 {[%clk
0:02:55.2]} 7. Bd3 {[%clk 0:02:59.4]} 7... Be7 {[%clk 0:02:55.4]} 8. O-O {[%clk
0:03:00.3]} 8... O-O {[%clk 0:02:55.3]} 9. Re1 {[%clk 0:02:58.5]} 9... b6 {[%clk
0:02:56.1]} 10. Ne5 {[%clk 0:02:49.6]} 10... Bb7 {[%clk 0:02:57]} 11. c3 {[%clk
0:02:46.1]} 11... c5 {[%clk 0:02:57.2]} 12. dxc5 {[%clk 0:02:32.1]} 12... Bxc5
{[%clk 0:02:56.5]} 13. Bg5 {[%clk 0:02:33]} 13... Be7 {[%clk 0:02:54.7]} 14. Qe2
{[%clk 0:02:29.6]} 14... Rc8 {[%clk 0:02:41.5]} 15. Rad1 {[%clk 0:02:29.8]}
15... Qc7 {[%clk 0:02:39.9]} 16. Bxf6 {[%clk 0:02:19.8]} 16... Bxf6 {[%clk
0:02:40.4]} 17. Nd7 {[%clk 0:02:20.3]} 17... Rfd8 {[%clk 0:02:19.9]} 18. Nxf6+
{[%clk 0:02:00.4]} 18... gxf6 {[%clk 0:02:21.8]} 19. Qh5 {[%clk 0:01:43.8]}
19... Kf8 {[%clk 0:02:13.3]} 20. Bxh7 {[%clk 0:01:30.1]} 20... Ke7 {[%clk
0:02:13]} 21. Be4 {[%clk 0:01:17]} 21... Bxe4 {[%clk 0:01:51.6]} 22. Rxe4 {[%clk
0:01:18.9]} 22... Rh8 {[%clk 0:01:52.2]} 23. Qf3 {[%clk 0:01:02.6]} 23... Qxh2+
{[%clk 0:01:47.6]} 24. Kf1 {[%clk 0:01:03.8]} 24... Rhd8 {[%clk 0:01:38.5]} 25.
Red4 {[%clk 0:00:50.7]} 25... Rxd4 {[%clk 0:01:22.5]} 26. Rxd4 {[%clk
0:00:52.6]} 26... Rc7 {[%clk 0:01:19.1]} 27. Qa8 {[%clk 0:00:45.7]} 27... Qh1+
{[%clk 0:01:16.6]} 28. Ke2 {[%clk 0:00:45.4]} 28... Qh5+ {[%clk 0:01:16.9]} 29.
Kd2 {[%clk 0:00:30.2]} 29... Qh6+ {[%clk 0:01:16.2]} 30. Kc2 {[%clk 0:00:25.2]}
30... Qf8 {[%clk 0:01:17.4]} 31. Qxf8+ {[%clk 0:00:21.3]} 31... Kxf8 {[%clk
0:01:17.7]} 32. Kd3 {[%clk 0:00:21.6]} 32... Rc5 {[%clk 0:01:13.8]} 33. Rd7
{[%clk 0:00:20]} 33... Ra5 {[%clk 0:01:11.8]} 34. a3 {[%clk 0:00:21.2]} 34...
Kg7 {[%clk 0:01:12.1]} 35. Kc4 {[%clk 0:00:16.5]} 35... Kg6 {[%clk 0:01:12.8]}
36. Kb4 {[%clk 0:00:13.3]} 36... f5 {[%clk 0:01:10.4]} 37. a4 {[%clk 0:00:13.8]}
37... f4 {[%clk 0:01:09.2]} 38. b3 {[%clk 0:00:11.3]} 38... f6 {[%clk
0:01:03.3]} 39. Ka3 {[%clk 0:00:09.3]} 39... b5 {[%clk 0:00:58.6]} 40. Kb4
{[%clk 0:00:08.9]} 40... Ra6 {[%clk 0:00:56.4]} 41. axb5 {[%clk 0:00:08.8]}
41... Ra2 {[%clk 0:00:57.3]} 42. c4 {[%clk 0:00:07.4]} 42... e5 {[%clk
0:00:55.7]} 43. c5 {[%clk 0:00:08.4]} 43... e4 {[%clk 0:00:56.2]} 44. c6 {[%clk
0:00:08.5]} 44... Rxf2 {[%clk 0:00:56.8]} 45. Rxa7 {[%clk 0:00:05.8]} 45... Rxg2
{[%clk 0:00:57.6]} 46. c7 {[%clk 0:00:06.9]} 46... Rc2 {[%clk 0:00:57.9]} 47. b6
{[%clk 0:00:06.5]} 47... e3 {[%clk 0:00:59.6]} 48. b7 {[%clk 0:00:07.1]} 48...
e2 {[%clk 0:01:00.5]} 49. c8=Q {[%clk 0:00:06.2]} 49... e1=Q+ {[%clk 0:01:00.4]}
50. Kb5 {[%clk 0:00:06.8]} 50... Qe5+ {[%clk 0:00:58.3]} 51. Ka6 {[%clk
0:00:04.4]} 51... Ra2+ {[%clk 0:00:57.9]} 52. Kb6 {[%clk 0:00:05.7]} 52... Qd4+
{[%clk 0:00:58.1]} 53. Qc5 {[%clk 0:00:04.2]} 53... Qd8+ {[%clk 0:00:58.5]} 54.
Kb5 {[%clk 0:00:03.7]} 54... Qd7+ {[%clk 0:00:56.5]} 55. Kb4 {[%clk 0:00:04.6]}
55... Qd2+ {[%clk 0:00:56.4]} 56. Kb5 {[%clk 0:00:02.2]} 56... Qd3+ {[%clk
0:00:56.7]} 57. Kb4 {[%clk 0:00:03.4]} 57... Qe4+ {[%clk 0:00:57.6]} 58. Qc4
{[%clk 0:00:03.2]} 58... Qe7+ {[%clk 0:00:57.6]} 59. Qc5 {[%clk 0:00:04.2]}
59... Qe1+ {[%clk 0:00:56.4]} 60. Kb5 {[%clk 0:00:04.3]} 60... Qe2+ {[%clk
0:00:56.5]} 61. Kb4 {[%clk 0:00:05.5]} 61... Qe4+ {[%clk 0:00:56]} 62. Kb5
{[%clk 0:00:06]} 62... Qe8+ {[%clk 0:00:56.7]} 63. Kb4 {[%clk 0:00:06.8]} 63...
Rxa7 {[%clk 0:00:57.2]} 64. Qxa7 {[%clk 0:00:06.8]} 64... Qe1+ {[%clk
0:00:58.3]} 65. Kb5 {[%clk 0:00:07.7]} 65... Qe2+ {[%clk 0:00:59.3]} 66. Kc6
{[%clk 0:00:06.5]} 66... Qe6+ {[%clk 0:00:59.5]} 67. Kb5 {[%clk 0:00:05.7]}
67... Qxb3+ {[%clk 0:01:00.6]} 68. Kc6 {[%clk 0:00:06.5]} 68... Qe6+ {[%clk
0:00:57.4]} 69. Kc7 {[%clk 0:00:07]} 69... Qe7+ {[%clk 0:00:57.6]} 70. Kc8
{[%clk 0:00:07.5]} 70... Qe8+ {[%clk 0:00:55.1]} 71. Kc7 {[%clk 0:00:08.9]}
71... Qe7+ {[%clk 0:00:55.3]} 72. Kc6 {[%clk 0:00:10.3]} 72... Qe4+ {[%clk
0:00:55.8]} 73. Kb5 {[%clk 0:00:10.1]} 73... Qb1+ {[%clk 0:00:56.3]} 74. Kc4
{[%clk 0:00:09.1]} 74... Qc1+ {[%clk 0:00:56.5]} 75. Kd3 {[%clk 0:00:08.8]}
75... Qd1+ {[%clk 0:00:54.9]} 76. Ke4 {[%clk 0:00:06.7]} 76... f5+ {[%clk
0:00:55.2]} 77. Kxf4 {[%clk 0:00:06.5]} 77... Qf1+ {[%clk 0:00:40.3]} 78. Ke5
{[%clk 0:00:06.4]} 78... Qb5+ {[%clk 0:00:40.2]} 79. Kd6 {[%clk 0:00:05.7]}
79... Qb4+ {[%clk 0:00:39.3]} 80. Kd7 {[%clk 0:00:05.1]} 80... Qb5+ {[%clk
0:00:39.1]} 81. Kc7 {[%clk 0:00:05.6]} 81... Qe5+ {[%clk 0:00:39.9]} 82. Kd7
{[%clk 0:00:06.6]} 82... Qd5+ {[%clk 0:00:40.2]} 83. Kc7 {[%clk 0:00:07.9]}
83... Qf7+ {[%clk 0:00:40]} 84. Kc6 {[%clk 0:00:08.2]} 84... Qe6+ {[%clk
0:00:39.4]} 85. Kb5 {[%clk 0:00:09.2]} 85... Qb3+ {[%clk 0:00:39.8]} 86. Kc6
{[%clk 0:00:08.8]} 86... Qe6+ {[%clk 0:00:40.4]} 87. Kc7 {[%clk 0:00:09.8]}
87... Qe7+ {[%clk 0:00:41.3]} 88. Kc8 {[%clk 0:00:10.4]} 88... Qe8+ {[%clk
0:00:42.4]} 89. Kc7 {[%clk 0:00:11.6]} 89... Qe7+ {[%clk 0:00:43.6]} 90. Kc6
{[%clk 0:00:12.9]} 90... Qe6+ {[%clk 0:00:44.3]} 91. Kb5 {[%clk 0:00:13.2]}
91... Qb3+ {[%clk 0:00:45.3]} 92. Kc6 {[%clk 0:00:11.8]} 92... Qe6+ {[%clk
0:00:46.2]} 1/2-1/2

[Event "*** Titled Tuesday 3|2 Blitz (Late)"]
[Site "Chess.com"]
[Date "2016.11.01"]
[Round "2"]
[White "FairChess_on_YouTube"]
[Black "Nyzhnyk_Illia"]
[Result "1/2-1/2"]
[WhiteElo "2759"]
[BlackElo "2557"]
[TimeControl "180+2"]
[EndTime "17:29:09 PDT"]
[Termination "Game drawn by agreement"]

1. d4 {[%clk 0:03:01.9]} 1... d5 {[%clk 0:03:01]} 2. Nf3 {[%clk 0:03:02.1]} 2...
Nf6 {[%clk 0:03:01.7]} 3. Bf4 {[%clk 0:03:03.2]} 3... Bf5 {[%clk 0:03:02.8]} 4.
e3 {[%clk 0:03:03.4]} 4... e6 {[%clk 0:03:03.7]} 5. c4 {[%clk 0:03:04.3]} 5...
Bxb1 {[%clk 0:02:50.8]} 6. Rxb1 {[%clk 0:03:00.5]} 6... Bb4+ {[%clk 0:02:52]} 7.
Ke2 {[%clk 0:03:00.9]} 7... dxc4 {[%clk 0:02:46.8]} 8. Qa4+ {[%clk 0:03:00.6]}
8... Nc6 {[%clk 0:02:48.2]} 9. Ne5 {[%clk 0:03:01.4]} 9... Bd6 {[%clk
0:02:43.1]} 10. Nxc6 {[%clk 0:03:01.4]} 10... Qd7 {[%clk 0:02:44.8]} 11. Bg5
{[%clk 0:02:55.8]} 11... Qxc6 {[%clk 0:02:15]} 12. Qxc6+ {[%clk 0:02:55.7]}
12... bxc6 {[%clk 0:02:16.7]} 13. Kf3 {[%clk 0:02:49]} 13... h6 {[%clk
0:02:15.4]} 14. Bxf6 {[%clk 0:02:44]} 14... gxf6 {[%clk 0:02:16.3]} 15. Bxc4
{[%clk 0:02:42.8]} 15... c5 {[%clk 0:02:16.7]} 16. d5 {[%clk 0:02:39.9]} 16...
Ke7 {[%clk 0:02:16.3]} 17. dxe6 {[%clk 0:02:37.9]} 17... fxe6 {[%clk 0:02:17]}
18. Rhd1 {[%clk 0:02:37.2]} 18... a5 {[%clk 0:02:16.9]} 19. a4 {[%clk 0:02:31]}
19... Rab8 {[%clk 0:02:17.3]} 20. b3 {[%clk 0:02:31.4]} 20... f5 {[%clk
0:02:14.6]} 21. g3 {[%clk 0:02:30.3]} 21... Be5 {[%clk 0:02:08.7]} 22. Re1
{[%clk 0:02:23.3]} 22... Bc3 {[%clk 0:02:01.7]} 23. Re2 {[%clk 0:02:23.1]} 23...
Rhf8 {[%clk 0:02:03.4]} 24. Kg2 {[%clk 0:02:18.5]} 24... Rbd8 {[%clk 0:02:02]}
25. Rc1 {[%clk 0:02:17.3]} 25... Bb4 {[%clk 0:01:59.5]} 26. f4 {[%clk
0:02:13.6]} 26... Rd2 {[%clk 0:01:53.8]} 27. Rxd2 {[%clk 0:02:14.6]} 27... Bxd2
{[%clk 0:01:54.9]} 28. Rd1 {[%clk 0:02:16.1]} 28... Rd8 {[%clk 0:01:54.6]} 29.
Kf3 {[%clk 0:02:14.5]} 29... Rd6 {[%clk 0:01:55.7]} 30. Ke2 {[%clk 0:01:59.5]}
30... Bb4 {[%clk 0:01:54.8]} 31. Bd3 {[%clk 0:02:00.8]} 31... Kf6 {[%clk
0:01:51.9]} 32. Rc1 {[%clk 0:01:59.4]} 32... h5 {[%clk 0:01:49.9]} 33. Rc4
{[%clk 0:01:56.6]} 33... Rd8 {[%clk 0:01:50.2]} 34. Rc2 {[%clk 0:01:48.2]} 34...
Rd6 {[%clk 0:01:50]} 35. Rc1 {[%clk 0:01:48.3]} 35... Rd8 {[%clk 0:01:50.7]} 36.
Rg1 {[%clk 0:01:47.7]} 36... Rd7 {[%clk 0:01:39.5]} 37. h3 {[%clk 0:01:43.8]}
37... Rg7 {[%clk 0:01:13.2]} 38. Kf3 {[%clk 0:01:44.1]} 38... Rd7 {[%clk
0:01:10.1]} 39. Bc4 {[%clk 0:01:38.9]} 39... Rd2 {[%clk 0:01:07.2]} 40. g4
{[%clk 0:01:32.7]} 40... hxg4+ {[%clk 0:01:07.9]} 41. hxg4 {[%clk 0:01:34.6]}
41... fxg4+ {[%clk 0:01:09.4]} 42. Rxg4 {[%clk 0:01:35.3]} 42... e5 {[%clk
0:01:06]} 43. Rh4 {[%clk 0:01:26.4]} 43... exf4 {[%clk 0:01:06.8]} 44. exf4
{[%clk 0:01:26.9]} 44... Kg7 {[%clk 0:00:45.6]} 45. Rg4+ {[%clk 0:01:24.6]}
45... Kf6 {[%clk 0:00:45.6]} 46. Rh4 {[%clk 0:01:25.7]} 46... Kg7 {[%clk
0:00:46.7]} 47. Rh5 {[%clk 0:01:22.3]} 47... Rd6 {[%clk 0:00:46.8]} 48. Ke4
{[%clk 0:01:18]} 48... Rd4+ {[%clk 0:00:37.7]} 49. Kf5 {[%clk 0:01:13]} 49...
Bd2 {[%clk 0:00:33.5]} 50. Rh4 {[%clk 0:01:12.7]} 50... Bc1 {[%clk 0:00:26.6]}
51. Ke5 {[%clk 0:01:05.4]} 51... Bd2 {[%clk 0:00:22.8]} 52. Rg4+ {[%clk
0:01:01.7]} 52... Kh6 {[%clk 0:00:18.5]} 53. Kf5 {[%clk 0:00:59.7]} 53... Bc1
{[%clk 0:00:16.7]} 54. Bf7 {[%clk 0:00:51.3]} 54... Rd6 {[%clk 0:00:17.2]} 55.
Ke5 {[%clk 0:00:47]} 55... Bb2+ {[%clk 0:00:18.2]} 56. Ke4 {[%clk 0:00:48.4]}
56... Rf6 {[%clk 0:00:19.5]} 57. Bc4 {[%clk 0:00:45.6]} 57... Rd6 {[%clk
0:00:20.5]} 58. Bd5 {[%clk 0:00:41.3]} 58... c6 {[%clk 0:00:20.7]} 59. Bc4
{[%clk 0:00:42.2]} 59... Bd4 {[%clk 0:00:20.8]} 60. Rg8 {[%clk 0:00:39]} 60...
Rg6 {[%clk 0:00:21.6]} 61. Ra8 {[%clk 0:00:36.7]} 61... Bc3 {[%clk 0:00:22.1]}
62. Kd3 {[%clk 0:00:36.3]} 62... Bb4 {[%clk 0:00:21.7]} 63. Rc8 {[%clk 0:00:35]}
63... Rd6+ {[%clk 0:00:22.5]} 64. Ke4 {[%clk 0:00:36.2]} 64... Bc3 {[%clk
0:00:23.8]} 65. Kf3 {[%clk 0:00:35.3]} 65... Kg7 {[%clk 0:00:24.5]} 66. Rc7+
{[%clk 0:00:35.5]} 66... Kf6 {[%clk 0:00:25.9]} 67. Kg4 {[%clk 0:00:31.9]} 67...
Kg6 {[%clk 0:00:25.8]} 68. Be6 {[%clk 0:00:23.5]} 68... Kf6 {[%clk 0:00:25.1]}
69. Bc4 {[%clk 0:00:21.5]} 69... Kg6 {[%clk 0:00:26]} 70. Rc8 {[%clk 0:00:18]}
70... Kf6 {[%clk 0:00:26.8]} 71. Rf8+ {[%clk 0:00:17.7]} 71... Kg7 {[%clk
0:00:26.6]} 72. Rf7+ {[%clk 0:00:18.7]} 72... Kg6 {[%clk 0:00:26.4]} 73. Ra7
{[%clk 0:00:17.2]} 73... Kf6 {[%clk 0:00:27]} 74. Rf7+ {[%clk 0:00:13.8]} 74...
Kg6 {[%clk 0:00:28.1]} 75. f5+ {[%clk 0:00:14.8]} 75... Kh6 {[%clk 0:00:29.5]}
76. Rc7 {[%clk 0:00:15.3]} 76... Rd4+ {[%clk 0:00:29.4]} 77. Kf3 {[%clk
0:00:15.6]} 77... Kg5 {[%clk 0:00:30.4]} 78. Rxc6 {[%clk 0:00:10.3]} 78... Kxf5
{[%clk 0:00:31.6]} 79. Rxc5+ {[%clk 0:00:11.6]} 79... Kf6 {[%clk 0:00:33.3]} 80.
Ke3 {[%clk 0:00:11.1]} 80... Rd6 {[%clk 0:00:32.6]} 81. Rb5 {[%clk 0:00:11]}
81... Bb4 {[%clk 0:00:30.8]} 82. Ke4 {[%clk 0:00:12]} 82... Rd2 {[%clk
0:00:31.6]} 83. Rb6+ {[%clk 0:00:11.7]} 83... Ke7 {[%clk 0:00:32.6]} 84. Bb5
{[%clk 0:00:09.8]} 84... Rd6 {[%clk 0:00:31.6]} 85. Rb7+ {[%clk 0:00:10.7]}
85... Kf6 {[%clk 0:00:32.8]} 86. Bc4 {[%clk 0:00:11.4]} 86... Bc3 {[%clk
0:00:33.6]} 87. Rf7+ {[%clk 0:00:12.2]} 87... Kg6 {[%clk 0:00:35]} 88. Rf3
{[%clk 0:00:12.9]} 88... Bb4 {[%clk 0:00:34.6]} 89. Ke5 {[%clk 0:00:13.7]} 89...
Kg7 {[%clk 0:00:32.3]} 90. Rf7+ {[%clk 0:00:12.5]} 90... Kg6 {[%clk 0:00:33.2]}
91. Rb7 {[%clk 0:00:13]} 91... Rd2 {[%clk 0:00:22.7]} 92. Bd5 {[%clk 0:00:12.8]}
92... Bc3+ {[%clk 0:00:22.3]} 93. Ke6 {[%clk 0:00:12]} 93... Kg5 {[%clk
0:00:23.1]} 94. Rf7 {[%clk 0:00:09]} 94... Bb4 {[%clk 0:00:23.9]} 95. Bc4 {[%clk
0:00:09.1]} 95... Kg4 {[%clk 0:00:23.4]} 96. Ke5 {[%clk 0:00:08.4]} 96... Kg3
{[%clk 0:00:23.6]} 97. Ke4 {[%clk 0:00:09.5]} 97... Rd6 {[%clk 0:00:23.8]} 98.
Rb7 {[%clk 0:00:09.2]} 98... Bc3 {[%clk 0:00:24.7]} 99. Rb5 {[%clk 0:00:10]}
99... Kf2 {[%clk 0:00:25]} 100. Bd5 {[%clk 0:00:09.8]} 100... Ke2 {[%clk
0:00:24]} 101. Rb7 {[%clk 0:00:10.7]} 101... Kd2 {[%clk 0:00:24.2]} 102. Rh7
{[%clk 0:00:11.5]} 102... Kc2 {[%clk 0:00:19.5]} 103. Rh2+ {[%clk 0:00:11.4]}
103... Kb1 {[%clk 0:00:20]} 104. Bc4 {[%clk 0:00:11.7]} 104... Rd2 {[%clk
0:00:20.1]} 105. Rh5 {[%clk 0:00:08.5]} 105... Kb2 {[%clk 0:00:21.1]} 106. Rh3
{[%clk 0:00:06.3]} 106... Rd4+ {[%clk 0:00:21.8]} 107. Kf5 {[%clk 0:00:07.5]}
107... Rd2 {[%clk 0:00:22.8]} 108. Ke6 {[%clk 0:00:08.4]} 108... Rd4 {[%clk
0:00:23.9]} 109. Bd5 {[%clk 0:00:08.6]} 109... Bb4 {[%clk 0:00:23.3]} 110. Rh2+
{[%clk 0:00:09.6]} 110... Rd2 {[%clk 0:00:24]} 111. Rh4 {[%clk 0:00:09.7]}
111... Ka3 {[%clk 0:00:24.8]} 112. Bc4 {[%clk 0:00:09.1]} 112... Rb2 {[%clk
0:00:25.4]} 113. Kd5 {[%clk 0:00:08.2]} 113... Rd2+ {[%clk 0:00:26.4]} 114. Kc6
{[%clk 0:00:08.9]} 114... Rf2 {[%clk 0:00:27.5]} 115. Rh5 {[%clk 0:00:09.4]}
115... Rf6+ {[%clk 0:00:28.6]} 116. Kb7 {[%clk 0:00:09.4]} 116... Rf2 {[%clk
0:00:28.8]} 117. Ka6 {[%clk 0:00:09.2]} 117... Rf6+ {[%clk 0:00:29.4]} 118. Kb5
{[%clk 0:00:10.7]} 118... Rf3 {[%clk 0:00:30.2]} 119. Rg5 {[%clk 0:00:09.9]}
119... Rf6 {[%clk 0:00:31.2]} 120. Rg3 {[%clk 0:00:09.3]} 120... Rf5+ {[%clk
0:00:32.1]} 121. Kc6 {[%clk 0:00:10.5]} 121... Rf4 {[%clk 0:00:32.6]} 122. Rh3
{[%clk 0:00:09.4]} 122... Rf5 {[%clk 0:00:33.4]} 123. Bd5 {[%clk 0:00:09.1]}
123... Rf6+ {[%clk 0:00:31.4]} 124. Kb5 {[%clk 0:00:09.3]} 124... Rf4 {[%clk
0:00:32.6]} 125. Rh1 {[%clk 0:00:09]} 125... Kb2 {[%clk 0:00:32.9]} 126. Rh2+
{[%clk 0:00:09.1]} 126... Ka3 {[%clk 0:00:33]} 127. Bc4 {[%clk 0:00:07.6]}
127... Rf5+ {[%clk 0:00:33.2]} 128. Kc6 {[%clk 0:00:09]} 128... Rg5 {[%clk
0:00:33.7]} 129. Kb6 {[%clk 0:00:08.1]} 129... Rf5 {[%clk 0:00:33.7]} 130. Rh6
{[%clk 0:00:08.2]} 130... Bc3 {[%clk 0:00:33.9]} 131. Ka6 {[%clk 0:00:08.5]}
131... Bb4 {[%clk 0:00:34.8]} 132. Rb6 {[%clk 0:00:09.3]} 132... Rg5 {[%clk
0:00:33.2]} 133. Bf7 {[%clk 0:00:07.8]} 133... Rg7 {[%clk 0:00:29.5]} 134. Bd5
{[%clk 0:00:06]} 134... Rd7 {[%clk 0:00:30.4]} 135. Bc4 {[%clk 0:00:06.1]}
135... Rg7 {[%clk 0:00:23.7]} 136. Rb5 {[%clk 0:00:06.1]} 136... Rg6+ {[%clk
0:00:24.5]} 137. Kb7 {[%clk 0:00:07.3]} 137... Rf6 {[%clk 0:00:25.3]} 138. Rb6
{[%clk 0:00:07.1]} 138... Rxb6+ {[%clk 0:00:26]} 139. Kxb6 {[%clk 0:00:09]}
1/2-1/2

[Event "*** Titled Tuesday 3|2 Blitz (Late)"]
[Site "Chess.com"]
[Date "2016.11.01"]
[Round "3"]
[White "nonscitis"]
[Black "fastestmindalive"]
[Result "0-1"]
[WhiteElo "2316"]
[BlackElo "2536"]
[TimeControl "180+2"]
[EndTime "17:33:31 PDT"]
[Termination "fastestmindalive won by resignation"]

1. e4 {[%clk 0:03:02]} 1... c5 {[%clk 0:02:48.5]} 2. Nf3 {[%clk 0:03:01.1]} 2...
g6 {[%clk 0:02:49.8]} 3. d4 {[%clk 0:03:01.6]} 3... cxd4 {[%clk 0:02:51.7]} 4.
Nxd4 {[%clk 0:03:03.2]} 4... Nc6 {[%clk 0:02:52.5]} 5. Nc3 {[%clk 0:03:03.8]}
5... Bg7 {[%clk 0:02:53.2]} 6. Be3 {[%clk 0:03:03.9]} 6... Nf6 {[%clk
0:02:54.4]} 7. Bc4 {[%clk 0:03:03.8]} 7... O-O {[%clk 0:02:56]} 8. Bb3 {[%clk
0:03:01.5]} 8... a5 {[%clk 0:02:57.1]} 9. O-O {[%clk 0:03:01.4]} 9... a4 {[%clk
0:02:52.3]} 10. Nxa4 {[%clk 0:03:01.6]} 10... Nxe4 {[%clk 0:02:53.5]} 11. Nb5
{[%clk 0:03:02.5]} 11... d5 {[%clk 0:02:53.8]} 12. Nb6 {[%clk 0:02:51.1]} 12...
Ra5 {[%clk 0:02:40.8]} 13. Bxd5 {[%clk 0:02:37.9]} 13... Rxb5 {[%clk 0:02:30.8]}
14. Bxe4 {[%clk 0:02:35.1]} 14... Rxb2 {[%clk 0:02:31.2]} 15. Qxd8 {[%clk
0:02:13.9]} 15... Rxd8 {[%clk 0:02:31.1]} 16. Bxc6 {[%clk 0:02:05.4]} 16... bxc6
{[%clk 0:02:29.4]} 17. Nxc8 {[%clk 0:02:05.7]} 17... Rxc8 {[%clk 0:02:30]} 18.
a4 {[%clk 0:02:06.5]} 18... Ra8 {[%clk 0:02:22.8]} 19. a5 {[%clk 0:02:05.1]}
19... Rb5 {[%clk 0:02:23.4]} 20. a6 {[%clk 0:01:46.6]} 20... Bxa1 {[%clk
0:02:23.2]} 21. Rxa1 {[%clk 0:01:41.2]} 21... Rxa6 {[%clk 0:02:24.2]} 0-1

[Event "*** Titled Tuesday 3|2 Blitz (Late)"]
[Site "Chess.com"]
[Date "2016.11.01"]
[Round "3"]
[White "pedromartinez91"]
[Black "jposthuma"]
[Result "1-0"]
[WhiteElo "2302"]
[BlackElo "2174"]
[TimeControl "180+2"]
[EndTime "17:35:43 PDT"]
[Termination "pedromartinez91 won by resignation"]

1. d4 {[%clk 0:02:56.4]} 1... Nf6 {[%clk 0:03:00.6]} 2. c4 {[%clk 0:02:57]} 2...
c5 {[%clk 0:03:01.8]} 3. Nf3 {[%clk 0:02:54.9]} 3... cxd4 {[%clk 0:02:56.9]} 4.
Nxd4 {[%clk 0:02:55.4]} 4... e5 {[%clk 0:02:58.1]} 5. Nb5 {[%clk 0:02:54.1]}
5... d5 {[%clk 0:02:59]} 6. cxd5 {[%clk 0:02:52.9]} 6... Bc5 {[%clk 0:03:00]} 7.
N5c3 {[%clk 0:02:49]} 7... O-O {[%clk 0:02:59.8]} 8. e3 {[%clk 0:02:49.5]} 8...
e4 {[%clk 0:03:00]} 9. Be2 {[%clk 0:02:48.8]} 9... Bf5 {[%clk 0:03:00.8]} 10. a3
{[%clk 0:02:47.8]} 10... Nbd7 {[%clk 0:03:01.5]} 11. b4 {[%clk 0:02:48.4]} 11...
Bd6 {[%clk 0:03:02.6]} 12. Bb2 {[%clk 0:02:47.8]} 12... Qe7 {[%clk 0:03:03.3]}
13. Nd2 {[%clk 0:02:47.6]} 13... Rfd8 {[%clk 0:03:02.7]} 14. Nc4 {[%clk
0:02:48.5]} 14... Ne5 {[%clk 0:02:56.8]} 15. Nxd6 {[%clk 0:02:45.4]} 15... Rxd6
{[%clk 0:02:58.7]} 16. Qd4 {[%clk 0:02:20]} 16... a5 {[%clk 0:02:03.8]} 17. O-O
{[%clk 0:02:18.6]} 17... Nfg4 {[%clk 0:01:21.3]} 18. Bxg4 {[%clk 0:02:13.8]}
18... Nxg4 {[%clk 0:01:16.3]} 19. Nxe4 {[%clk 0:02:12]} 19... Rg6 {[%clk
0:01:12.4]} 20. Ng3 {[%clk 0:02:11.4]} 20... Bd7 {[%clk 0:00:26]} 21. h3 {[%clk
0:02:11.5]} 21... Nh6 {[%clk 0:00:18.8]} 22. e4 {[%clk 0:02:11.5]} 22... axb4
{[%clk 0:00:04.3]} 23. axb4 {[%clk 0:02:10.8]} 23... Rxa1 {[%clk 0:00:04]} 24.
Rxa1 {[%clk 0:02:10.9]} 24... f5 {[%clk 0:00:05.9]} 25. Ra8+ {[%clk 0:02:07.1]}
25... Kf7 {[%clk 0:00:06.2]} 26. e5 {[%clk 0:02:08.1]} 26... Be8 {[%clk
0:00:02.3]} 27. e6+ {[%clk 0:02:08.6]} 27... Kf8 {[%clk 0:00:03.7]} 28. b5
{[%clk 0:02:05.1]} 28... Kg8 {[%clk 0:00:03.4]} 29. Ba3 {[%clk 0:02:05.1]} 29...
Qxa3 {[%clk 0:00:02.8]} 30. Rxa3 {[%clk 0:02:04.8]} 30... Bxb5 {[%clk
0:00:04.1]} 31. Ra8+ {[%clk 0:02:04.1]} 1-0

[Event "*** Titled Tuesday 3|2 Blitz (Late)"]
[Site "Chess.com"]
[Date "2016.11.01"]
[Round "3"]
[White "Zaven_ChessMood"]
[Black "Izoria123"]
[Result "1-0"]
[WhiteElo "2806"]
[BlackElo "2566"]
[TimeControl "180+2"]
[EndTime "17:36:06 PDT"]
[Termination "Zaven_ChessMood won by resignation"]

1. e4 {[%clk 0:03:02]} 1... c6 {[%clk 0:02:59.4]} 2. d4 {[%clk 0:03:02.4]} 2...
d5 {[%clk 0:03:01.3]} 3. e5 {[%clk 0:03:02.6]} 3... Bf5 {[%clk 0:03:02.3]} 4. h4
{[%clk 0:03:03.5]} 4... h5 {[%clk 0:03:02.2]} 5. Bd3 {[%clk 0:03:03.7]} 5...
Bxd3 {[%clk 0:03:02.2]} 6. Qxd3 {[%clk 0:03:04.9]} 6... e6 {[%clk 0:03:03.8]} 7.
Bg5 {[%clk 0:03:04.7]} 7... Be7 {[%clk 0:03:02.1]} 8. Nf3 {[%clk 0:03:05.1]}
8... c5 {[%clk 0:03:02.5]} 9. dxc5 {[%clk 0:03:02.7]} 9... Qa5+ {[%clk
0:02:57.5]} 10. Nc3 {[%clk 0:02:57.2]} 10... Bxc5 {[%clk 0:02:46.6]} 11. O-O
{[%clk 0:02:57.4]} 11... Nc6 {[%clk 0:02:47.1]} 12. a3 {[%clk 0:02:57.8]} 12...
Be7 {[%clk 0:02:42.5]} 13. b4 {[%clk 0:02:55.3]} 13... Qd8 {[%clk 0:02:42.5]}
14. Nb5 {[%clk 0:02:55.1]} 14... Kf8 {[%clk 0:02:41.8]} 15. Rfe1 {[%clk
0:02:53.1]} 15... g6 {[%clk 0:02:39.1]} 16. Nd6 {[%clk 0:02:51.7]} 16... Nxe5
{[%clk 0:02:23]} 17. Nxe5 {[%clk 0:02:49.4]} 17... Qxd6 {[%clk 0:02:23.9]} 18.
Qf3 {[%clk 0:02:47.2]} 18... Rh7 {[%clk 0:02:15.6]} 19. Nxg6+ {[%clk 0:02:47.8]}
19... Ke8 {[%clk 0:02:17.2]} 20. Nxe7 {[%clk 0:02:45.5]} 20... Nxe7 {[%clk
0:02:19.1]} 21. c4 {[%clk 0:02:46.3]} 21... Rc8 {[%clk 0:02:00.8]} 22. cxd5
{[%clk 0:02:44.1]} 22... Qxd5 {[%clk 0:02:02.3]} 23. Qf6 {[%clk 0:02:43.6]}
23... Ng8 {[%clk 0:01:56.8]} 24. Qf4 {[%clk 0:02:39.2]} 24... f6 {[%clk
0:01:52.7]} 25. Bxf6 {[%clk 0:02:37.4]} 25... Rf7 {[%clk 0:01:49.4]} 26. Rad1
{[%clk 0:02:28.5]} 26... Rxf6 {[%clk 0:01:39.6]} 27. Qg3 {[%clk 0:02:28.9]}
27... Qf5 {[%clk 0:01:05.3]} 28. Qxg8+ {[%clk 0:02:27.1]} 28... Ke7 {[%clk
0:01:07.2]} 29. Qg7+ {[%clk 0:02:20.8]} 29... Rf7 {[%clk 0:01:05.2]} 30. Qd4
{[%clk 0:02:21.6]} 30... Rg8 {[%clk 0:00:53]} 31. Qd6+ {[%clk 0:02:19.2]} 31...
Kf6 {[%clk 0:00:53.4]} 32. Rd3 {[%clk 0:02:10.6]} 32... Rg4 {[%clk 0:00:31.1]}
33. Rde3 {[%clk 0:02:00.8]} 33... Re7 {[%clk 0:00:31.1]} 34. Qd8 {[%clk
0:01:56.2]} 34... Kf7 {[%clk 0:00:30.8]} 35. g3 {[%clk 0:01:50.5]} 35... Rg8
{[%clk 0:00:24.2]} 36. Qd1 {[%clk 0:01:50.4]} 36... Kg7 {[%clk 0:00:21.2]} 37.
Re5 {[%clk 0:01:50.7]} 1-0